bitfinex/quotes_BTCUSD_20250110
["timestamp","ask_amount","ask_price","bid_price","bid_amount"]
[1736479270562,0.18769044,93642.0,93641.0,0.00210138]
[1736479270779,0.18844065,93642.0,93641.0,0.00310138]
[1736479270970,0.18844065,93642.0,93641.0,0.00210138]
[1736479271360,0.18844065,93642.0,93641.0,0.00310138]
[1736479271566,0.15075021,93642.0,93641.0,0.00310138]
[1736479271764,0.15,93642.0,93641.0,0.00310138]
[1736479272186,0.15,93642.0,93641.0,0.00210138]
[1736479272568,0.15875021,93642.0,93641.0,0.00310138]
[1736479272986,0.16225643,93642.0,93641.0,0.00310138]
[1736479273186,0.25610497,93642.0,93641.0,0.00310138]
[1736479273587,0.25310497,93642.0,93641.0,0.00310138]
[1736479273804,0.15425643,93642.0,93641.0,0.86660138]
[1736479274001,0.16325643,93642.0,93641.0,0.86760138]
[1736479274207,0.23885643,93642.0,93641.0,0.32570138]
[1736479274412,0.37876243,93642.0,93641.0,0.32470138]
[1736479274753,0.44521019,93642.0,93641.0,0.32470138]
[1736479274925,0.45321019,93642.0,93641.0,0.32570138]
[1736479275141,0.45021019,93642.0,93641.0,0.32570138]
[1736479275553,0.44521019,93642.0,93641.0,0.32470138]
[1736479275969,0.0756,93638.0,93623.0,0.3226]
[1736479276293,0.43922,93624.0,93623.0,0.3226]
[1736479276665,0.44118215,93624.0,93623.0,0.3226]
[1736479276894,0.36558215,93624.0,93623.0,0.3226]
[1736479277099,0.36362,93624.0,93623.0,0.3226]
[1736479278134,0.37262,93624.0,93623.0,0.3226]
[1736479278734,0.36662,93624.0,93623.0,0.3226]
[1736479278974,0.37162,93624.0,93623.0,0.3226]
[1736479279191,0.36662,93624.0,93623.0,0.3226]
[1736479279397,0.4510644,93624.0,93623.0,0.3226]
[1736479279615,0.45815417,93624.0,93623.0,0.3226]
[1736479280248,0.46879269,93624.0,93623.0,0.3226]
[1736479280429,0.46979269,93624.0,93623.0,0.3226]
[1736479280849,0.46579269,93624.0,93623.0,0.3226]
[1736479281193,0.47079269,93624.0,93623.0,0.3226]
[1736479281562,0.46579269,93624.0,93623.0,0.3226]
[1736479281773,0.47479269,93624.0,93623.0,0.3226]
[1736479281977,0.38734829,93624.0,93623.0,0.3226]
[1736479282184,0.38425852,93624.0,93623.0,0.3226]
[1736479282598,0.38725852,93624.0,93623.0,0.3226]
[1736479285305,0.37825852,93624.0,93623.0,0.3226]
[1736479285515,0.38325852,93624.0,93623.0,0.3226]
[1736479285763,0.38625852,93624.0,93623.0,0.3226]
[1736479289389,0.47765034,93624.0,93623.0,0.3226]
[1736479293071,0.38859699,93624.0,93623.0,0.3226]
[1736479293454,0.38625852,93624.0,93623.0,0.3226]
[1736479293833,0.38625852,93624.0,93623.0,0.32473114]
[1736479294104,0.38859699,93624.0,93623.0,0.32473114]
[1736479294652,0.38059699,93624.0,93623.0,0.32473114]
[1736479295069,0.37759699,93624.0,93623.0,0.32473114]
[1736479295273,0.38059699,93624.0,93623.0,0.32473114]
[1736479295473,0.38859699,93624.0,93623.0,0.32473114]
[1736479295808,0.46137909,93624.0,93623.0,0.32473114]
[1736479296216,0.46837909,93624.0,93623.0,0.32473114]
[1736479296397,0.46537909,93624.0,93623.0,0.32473114]
[1736479296762,0.46837909,93624.0,93623.0,0.32473114]
[1736479297600,0.38759699,93624.0,93623.0,0.32473114]
[1736479297795,0.38059699,93624.0,93623.0,0.86663114]
[1736479298036,0.38459699,93624.0,93623.0,0.86663114]
[1736479298438,0.38759699,93624.0,93623.0,0.86663114]
[1736479298862,0.37759699,93624.0,93623.0,0.86663114]
[1736479299328,0.38659699,93624.0,93623.0,0.86663114]
[1736479301726,0.38459699,93624.0,93623.0,0.86663114]
[1736479302126,0.37959699,93624.0,93623.0,0.86663114]
[1736479302657,0.38559699,93624.0,93623.0,0.86663114]
[1736479303202,0.38325852,93624.0,93623.0,0.86663114]
[1736479303449,0.38125852,93624.0,93623.0,0.94593114]
[1736479303655,0.38325852,93624.0,93623.0,0.94593114]
[1736479304380,0.37725852,93624.0,93623.0,0.94593114]
[1736479304574,0.38225852,93624.0,93623.0,0.94593114]
[1736479304803,0.37725852,93624.0,93623.0,0.94593114]
[1736479305009,0.37525852,93624.0,93623.0,0.94593114]
[1736479305186,0.38025852,93624.0,93623.0,0.94593114]
[1736479305489,0.37625852,93624.0,93623.0,0.94593114]
[1736479305763,0.38025852,93624.0,93623.0,0.94593114]
[1736479305991,0.37925852,93624.0,93623.0,0.94593114]
[1736479306414,0.38025852,93624.0,93623.0,0.94593114]
[1736479306798,0.37925852,93624.0,93623.0,0.94593114]
[1736479308344,0.38025852,93624.0,93623.0,0.94593114]
[1736479311953,0.01663852,93624.0,93623.0,0.86663114]
[1736479312386,0.23025852,93624.0,93623.0,0.86663114]
[1736479312619,0.30393677,93624.0,93623.0,0.86663114]
[1736479313210,0.30413765,93624.0,93623.0,0.86663114]
[1736479314008,0.45413765,93624.0,93623.0,0.86663114]
[1736479314471,0.3804594,93624.0,93623.0,0.86663114]
[1736479315698,0.3804594,93624.0,93623.0,0.32473114]
[1736479318060,0.38054125,93624.0,93623.0,0.32473114]
[1736479318748,0.38054125,93624.0,93623.0,0.3226]
[1736479319078,0.38054125,93624.0,93623.0,0.32473466]
[1736479320061,0.48484101,93624.0,93623.0,0.32473466]
[1736479320389,0.48484101,93624.0,93623.0,0.3226]
[1736479320849,0.48484101,93624.0,93623.0,0.32473466]
[1736479322242,0.89346001,93624.0,93623.0,0.20854407]
[1736479322458,0.99346001,93624.0,93623.0,0.1710839]
[1736479322666,1.07276001,93624.0,93623.0,0.16894924]
[1736479322877,1.26429086,93624.0,93623.0,0.16894924]
[1736479323086,1.25929086,93624.0,93623.0,0.16894924]
[1736479323487,1.07076001,93624.0,93623.0,0.16894924]
[1736479324623,1.07676001,93624.0,93623.0,0.16894924]
[1736479324823,1.06776001,93624.0,93623.0,0.14483924]
[1736479324954,1.07076001,93624.0,93623.0,0.14483924]
[1736479325162,1.07976001,93624.0,93623.0,0.14483924]
[1736479325636,1.07976001,93624.0,93623.0,0.14151557]
[1736479325846,0.67114101,93624.0,93623.0,0.14151557]
[1736479326061,1.44128601,93624.0,93623.0,0.14151557]
[1736479326270,1.27920801,93624.0,93623.0,0.14151557]
[1736479327227,0.85465925,93624.0,93623.0,0.14151557]
[1736479327805,0.85465925,93624.0,93623.0,0.46411557]
[1736479328043,1.04677209,93624.0,93623.0,0.46411557]
[1736479328230,1.04677209,93624.0,93623.0,0.46626876]
[1736479328893,0.85465925,93624.0,93623.0,0.46626876]
[1736479329101,0.95895901,93624.0,93623.0,0.46626876]
[1736479329436,0.85895901,93624.0,93623.0,0.46626876]
[1736479329635,0.95895901,93624.0,93623.0,0.46411557]
[1736479329838,1.10297277,93624.0,93623.0,0.46411557]
[1736479330044,1.10297277,93624.0,93623.0,0.46626876]
[1736479330239,0.95895901,93624.0,93623.0,0.46411557]
[1736479330447,0.95895901,93624.0,93623.0,0.46626876]
[1736479331060,0.85895901,93624.0,93623.0,0.46626876]
[1736479331653,0.99133244,93624.0,93623.0,0.46626876]
[1736479331874,0.51963195,93624.0,93623.0,0.46626876]
[1736479332085,0.36963195,93624.0,93623.0,0.46626876]
[1736479332285,0.22562,93624.0,93623.0,0.46411557]
[1736479332707,0.22562,93624.0,93623.0,0.46626717]
[1736479332708,0.37562,93624.0,93623.0,0.46626717]
[1736479333043,0.37856191,93624.0,93623.0,0.46626717]
[1736479335881,0.37856191,93624.0,93623.0,0.46411557]
[1736479336355,0.37856191,93624.0,93623.0,0.46626257]
[1736479342610,0.47460683,93624.0,93623.0,0.46626257]
[1736479343052,0.47460683,93624.0,93623.0,0.46411557]
[1736479343302,0.57890659,93624.0,93623.0,0.46411557]
[1736479343440,0.57890659,93624.0,93623.0,0.46625188]
[1736479343642,0.47986167,93624.0,93623.0,0.46625188]
[1736479344053,0.48286167,93624.0,93623.0,0.46625188]
[1736479344226,0.37856191,93624.0,93623.0,0.46625188]
[1736479344582,0.37556191,93624.0,93623.0,0.54585188]
[1736479344943,0.36956191,93624.0,93623.0,0.54585188]
[1736479345926,0.37556191,93624.0,93623.0,0.54585188]
[1736479346141,0.36656191,93624.0,93623.0,0.54585188]
[1736479346497,0.37456191,93624.0,93623.0,0.54585188]
[1736479346892,0.36656191,93624.0,93623.0,0.54585188]
[1736479347089,0.37456191,93624.0,93623.0,0.54585188]
[1736479347420,0.37462,93624.0,93623.0,0.59175188]
[1736479347658,0.161,93624.0,93623.0,1.13365188]
[1736479347866,0.158,93624.0,93623.0,1.13365188]
[1736479348070,0.161,93624.0,93623.0,1.13365188]
[1736479348681,0.15,93624.0,93623.0,1.13365188]
[1736479348911,0.152,93624.0,93623.0,1.13365188]
[1736479349328,0.16,93624.0,93623.0,1.13365188]
[1736479349546,0.152,93624.0,93623.0,1.13365188]
[1736479349963,0.158,93624.0,93623.0,1.13365188]
[1736479350174,0.152,93624.0,93623.0,1.13365188]
[1736479350384,0.15,93624.0,93623.0,1.13365188]
[1736479350587,0.156,93624.0,93623.0,1.13365188]
[1736479350808,0.152,93624.0,93623.0,1.13365188]
[1736479351135,0.154,93624.0,93623.0,1.13365188]
[1736479351558,0.155,93624.0,93623.0,1.13365188]
[1736479351784,0.23790095,93624.0,93623.0,1.00815188]
[1736479352519,0.23390095,93624.0,93623.0,1.00815188]
[1736479352765,0.23290095,93624.0,93623.0,1.00815188]
[1736479353043,0.23490095,93624.0,93623.0,1.00815188]
[1736479353248,0.23290095,93624.0,93623.0,1.00815188]
[1736479353665,0.23490095,93624.0,93623.0,1.00815188]
[1736479354961,0.23490095,93624.0,93623.0,0.86663631]
[1736479355449,0.23590095,93624.0,93623.0,0.86663631]
[1736479359326,0.46405295,93624.0,93623.0,0.86663631]
[1736479359826,0.64115295,93624.0,93623.0,0.32473631]
[1736479360066,0.73815295,93624.0,93623.0,0.32473631]
[1736479360280,0.73815295,93624.0,93623.0,0.3226]
[1736479360281,0.74715295,93624.0,93623.0,0.3226]
[1736479360493,1.14920203,93624.0,93623.0,0.03661988]
[1736479360701,0.463675,93600.0,93590.0,0.3226]
[1736479360929,0.9886965,93600.0,93590.0,0.3226]
[1736479361143,0.99173046,93600.0,93590.0,0.3226]
[1736479362005,0.99173046,93600.0,93599.0,0.00066032]
[1736479362154,0.99773046,93600.0,93599.0,0.00166032]
[1736479362551,1.14172765,93600.0,93599.0,0.00166032]
[1736479362914,1.13572765,93600.0,93599.0,0.00066032]
[1736479363113,1.14072765,93600.0,93599.0,0.00066032]
[1736479363817,1.14972765,93600.0,93599.0,0.00066032]
[1736479363975,1.00573046,93600.0,93599.0,0.00066032]
[1736479368424,0.90573046,93600.0,93599.0,0.00066032]
[1736479368629,1.00573046,93600.0,93599.0,0.00066032]
[1736479369593,0.89173046,93600.0,93599.0,0.00066032]
[1736479369799,0.89673046,93600.0,93599.0,0.00066032]
[1736479370005,0.90573046,93600.0,93599.0,0.00066032]
[1736479370537,0.79809046,93600.0,93599.0,0.00066032]
[1736479370753,0.625611,93600.0,93599.0,0.00066032]
[1736479370969,0.63629689,93600.0,93599.0,0.00066032]
[1736479371653,0.63129689,93600.0,93599.0,0.00066032]
[1736479372116,0.63529689,93600.0,93599.0,0.00066032]
[1736479372324,0.63959665,93600.0,93599.0,0.00066032]
[1736479372527,0.382251,93600.0,93599.0,0.00066032]
[1736479372729,0.373394,93600.0,93599.0,0.00066032]
[1736479372902,0.523394,93600.0,93599.0,0.00066032]
[1736479373103,0.524754,93600.0,93599.0,0.00066032]
[1736479373893,0.376675,93600.0,93599.0,0.00066032]
[1736479375362,0.543671,93600.0,93599.0,0.00066032]
[1736479375761,0.543671,93600.0,93599.0,0.32326032]
[1736479375969,0.6415352,93600.0,93599.0,0.32326032]
[1736479376168,0.6415352,93600.0,93599.0,0.32533862]
[1736479376779,0.6183632,93600.0,93599.0,0.32533862]
[1736479376932,0.4745392,93600.0,93599.0,0.32533862]
[1736479378253,0.7459042,93600.0,93599.0,0.32533862]
[1736479378652,0.6515712,93600.0,93599.0,0.32533862]
[1736479379244,0.63297771,93600.0,93599.0,0.32533862]
[1736479380516,0.48596871,93600.0,93599.0,0.32533862]
[1736479380803,0.38810451,93600.0,93599.0,0.40363862]
[1736479381736,0.391156,93600.0,93599.0,0.40363862]
[1736479381930,0.387156,93600.0,93599.0,0.40363862]
[1736479382110,0.378156,93600.0,93599.0,0.40363862]
[1736479382306,0.382156,93600.0,93599.0,0.40363862]
[1736479382511,0.391156,93600.0,93599.0,0.40363862]
[1736479382756,0.42861969,93600.0,93599.0,0.40363862]
[1736479382910,0.41961969,93600.0,93599.0,0.40363862]
[1736479383119,0.42661969,93600.0,93599.0,0.40363862]
[1736479383469,0.42261969,93600.0,93599.0,0.40363862]
[1736479383618,0.42461969,93600.0,93599.0,0.40363862]
[1736479385465,0.387156,93600.0,93599.0,0.40363862]
[1736479385985,0.378156,93600.0,93599.0,0.40363862]
[1736479386192,0.380156,93600.0,93599.0,0.40363862]
[1736479386399,0.386156,93600.0,93599.0,0.40363862]
[1736479386607,0.380156,93600.0,93599.0,0.40363862]
[1736479386877,0.378156,93600.0,93599.0,0.40363862]
[1736479387132,0.386156,93600.0,93599.0,0.40363862]
[1736479387301,0.4667047,93600.0,93599.0,0.40363862]
[1736479388473,0.386156,93600.0,93599.0,0.40363862]
[1736479389342,0.386156,93600.0,93599.0,0.45073862]
[1736479389574,0.384156,93600.0,93599.0,0.45073862]
[1736479389836,0.378156,93600.0,93599.0,0.45073862]
[1736479390075,0.380156,93600.0,93599.0,0.45073862]
[1736479390291,0.386156,93600.0,93599.0,0.45073862]
[1736479390426,0.380156,93600.0,93599.0,0.45073862]
[1736479390863,0.38210451,93600.0,93599.0,0.45073862]
[1736479391478,0.38010451,93600.0,93599.0,0.45073862]
[1736479391685,0.46204806,93600.0,93599.0,0.45073862]
[1736479392807,0.46510432,93600.0,93599.0,0.45073862]
[1736479397435,0.38316077,93600.0,93599.0,0.45073862]
[1736479397836,0.38416077,93600.0,93599.0,0.45073862]
[1736479399220,0.37916077,93600.0,93599.0,0.45073862]
[1736479399594,0.01642951,93600.0,93599.0,0.99263862]
[1736479399929,0.005,93600.0,93599.0,0.99263862]
[1736479400351,0.001,93600.0,93599.0,0.99263862]
[1736479400595,0.15,93619.0,93603.0,0.213668]
[1736479400802,0.01089388,93612.0,93609.0,0.1291]
[1736479401015,0.213622,93624.0,93615.0,0.1291]
[1736479401258,0.15,93623.0,93616.0,0.0821]
[1736479401468,0.213605,93631.0,93618.0,0.0821]
[1736479401645,0.01099705,93625.0,93618.0,0.0821]
[1736479401844,0.21666343,93631.0,93619.0,0.00205998]
[1736479402068,0.213605,93631.0,93619.0,0.00205998]
[1736479402283,0.21666343,93631.0,93620.0,0.02260266]
[1736479402493,0.213625,93622.0,93621.0,0.0797]
[1736479402707,0.213625,93622.0,93621.0,0.08175978]
[1736479403835,0.218625,93622.0,93621.0,0.08175978]
[1736479404309,0.218625,93622.0,93621.0,0.0797]
[1736479404676,0.218625,93622.0,93621.0,0.08175978]
[1736479405315,0.005,93622.0,93621.0,0.08175978]
[1736479405477,0.005,93622.0,93621.0,0.94625978]
[1736479405478,0.006,93622.0,93621.0,0.94625978]
[1736479408003,0.006,93622.0,93621.0,1.09108576]
[1736479408664,0.006,93622.0,93621.0,0.99175978]
[1736479409987,0.005,93622.0,93621.0,0.99175978]
[1736479410225,0.213615,93627.0,93622.0,0.0765]
[1736479410751,0.213615,93627.0,93625.0,0.8645]
[1736479411019,0.213615,93627.0,93626.0,0.0765]
[1736479411223,0.213615,93627.0,93626.0,0.07855321]
[1736479411697,0.215615,93627.0,93626.0,0.12385321]
[1736479411907,0.213615,93627.0,93626.0,0.12385321]
[1736479413250,0.215615,93627.0,93626.0,0.12385321]
[1736479414646,0.215615,93627.0,93626.0,0.98835321]
[1736479415908,0.363606,93630.0,93626.0,0.98835321]
[1736479416650,0.213615,93627.0,93626.0,0.98835321]
[1736479418531,0.215615,93627.0,93626.0,0.98835321]
[1736479420098,0.002,93627.0,93626.0,0.98835321]
[1736479423396,0.213578,93643.0,93626.0,0.91185321]
[1736479423746,0.213578,93643.0,93627.0,0.0829]
[1736479423983,0.213578,93643.0,93627.0,0.08475957]
[1736479424994,0.215586,93639.0,93627.0,0.08475957]
[1736479425191,0.213586,93639.0,93628.0,0.0773]
[1736479425600,0.213586,93639.0,93630.0,0.0773]
[1736479425946,0.213586,93639.0,93632.0,0.0767]
[1736479426406,0.21366453,93639.0,93633.0,0.001859]
[1736479426661,0.00207853,93639.0,93635.0,0.0767]
[1736479426822,7.853e-05,93639.0,93635.0,0.0767]
[1736479427264,0.00107853,93639.0,93636.0,0.00185872]
[1736479427495,7.853e-05,93639.0,93636.0,0.00185872]
[1736479430477,7.853e-05,93639.0,93637.0,0.02008494]
[1736479430681,7.853e-05,93639.0,93636.0,0.00185872]
[1736479430836,7.853e-05,93639.0,93637.0,0.00185862]
[1736479431046,7.853e-05,93639.0,93635.0,0.0767]
[1736479431513,7.853e-05,93639.0,93636.0,0.00185872]
[1736479431698,0.00407853,93639.0,93636.0,0.00185872]
[1736479431843,7.853e-05,93639.0,93636.0,0.00185872]
[1736479432047,0.00107853,93639.0,93636.0,0.00185872]
[1736479432599,0.00107853,93639.0,93637.0,0.8645]
[1736479432812,0.15,93638.0,93637.0,0.8645]
[1736479434058,0.15,93638.0,93637.0,0.8655]
[1736479434256,0.15,93638.0,93637.0,0.8645]
[1736479434667,0.15,93638.0,93637.0,0.8655]
[1736479435041,0.21366553,93639.0,93637.0,0.9162]
[1736479435042,7.853e-05,93639.0,93637.0,0.9162]
[1736479435265,7.853e-05,93639.0,93638.0,0.99226788]
[1736479435590,7.853e-05,93639.0,93638.0,0.9912]
[1736479438257,7.853e-05,93639.0,93638.0,0.9922]
[1736479438537,7.853e-05,93639.0,93638.0,0.9912]
[1736479438698,7.853e-05,93639.0,93638.0,1.09649976]
[1736479439120,7.853e-05,93639.0,93638.0,0.9922]
[1736479439728,7.853e-05,93639.0,93638.0,0.9932]
[1736479440530,7.853e-05,93639.0,93638.0,1.09749976]
[1736479440738,7.853e-05,93639.0,93638.0,1.12049976]
[1736479442291,0.0001706,93658.0,93638.0,1.12049976]
[1736479442292,0.0001706,93658.0,93656.0,0.1272]
[1736479442507,0.00024914,93658.0,93657.0,1.0970673]
[1736479442878,8.52e-05,93661.0,93660.0,0.236538]
[1736479443138,8.52e-05,93661.0,93660.0,0.46803776]
[1736479444473,0.0010852,93661.0,93660.0,0.47203776]
[1736479444775,0.0010852,93661.0,93660.0,0.4921227]
[1736479445448,0.0010852,93661.0,93660.0,0.4951227]
[1736479446140,0.0010852,93661.0,93660.0,0.49695861]
[1736479446399,0.0010852,93661.0,93660.0,0.47687367]
[1736479447485,0.0010852,93661.0,93660.0,1.01877367]
[1736479451823,0.0010852,93661.0,93660.0,1.11877367]
[1736479453510,0.001,93661.0,93660.0,1.21877367]
[1736479453742,8.52e-05,93668.0,93665.0,0.47310986]
[1736479453983,8.52e-05,93668.0,93665.0,0.57740962]
[1736479454206,8.52e-05,93668.0,93665.0,0.57922216]
[1736479455143,0.0011706,93666.0,93665.0,0.58722216]
[1736479455442,0.0011706,93666.0,93665.0,0.6073071]
[1736479459370,0.001,93666.0,93665.0,0.6073071]
[1736479459572,8.52e-05,93668.0,93667.0,0.63906126]
[1736479459888,8.52e-05,93668.0,93667.0,0.74336102]
[1736479460122,8.52e-05,93668.0,93667.0,0.84945434]
[1736479460834,0.0010852,93668.0,93667.0,0.90085434]
[1736479461410,0.0010852,93668.0,93667.0,0.90285434]
[1736479463784,0.0010852,93668.0,93667.0,0.79855458]
[1736479465664,0.0001706,93676.0,93675.0,0.213504]
[1736479465867,0.0001706,93676.0,93675.0,0.31780376]
[1736479466081,0.0001706,93676.0,93675.0,0.31958684]
[1736479467007,0.0001706,93676.0,93675.0,0.32158684]
[1736479468010,0.0001706,93676.0,93675.0,0.32258684]
[1736479471546,0.0001706,93676.0,93675.0,1.1832409]
[1736479473616,0.0001706,93676.0,93675.0,1.28754066]
[1736479473822,0.0001706,93676.0,93675.0,1.1832409]
[1736479476370,0.0001706,93676.0,93675.0,1.2604409]
[1736479482010,0.0001706,93676.0,93675.0,1.3320409]
[1736479482230,8.52e-05,93704.0,93677.0,0.31849826]
[1736479482534,8.52e-05,93704.0,93677.0,0.68099778]
[1736479482770,8.52e-05,93704.0,93677.0,0.68271456]
[1736479483030,8.52e-05,93704.0,93677.0,1.32461456]
[1736479484794,0.0010852,93678.0,93677.0,1.33361456]
[1736479484997,0.0010852,93678.0,93677.0,1.33761456]
[1736479485449,0.0010425,93678.0,93677.0,1.33761456]
[1736479485629,9.4e-06,93686.0,93685.0,0.318781]
[1736479485841,9.4e-06,93686.0,93685.0,0.4431657]
[1736479486137,9.4e-06,93686.0,93685.0,0.44488172]
[1736479486359,9.4e-06,93686.0,93685.0,1.30527998]
[1736479486762,9.4e-06,93686.0,93685.0,1.35387998]
[1736479487172,0.0010094,93686.0,93685.0,1.36487998]
[1736479487549,0.0010094,93686.0,93685.0,1.34479504]
[1736479488144,0.00109318,93686.0,93685.0,1.34479504]
[1736479489074,0.00109318,93686.0,93685.0,1.34586504]
[1736479498725,2.318e-05,93686.0,93685.0,1.34479504]
[1736479502513,8.52e-05,93704.0,93703.0,0.33994]
[1736479502740,8.52e-05,93704.0,93703.0,0.373934]
[1736479502947,0.00057542,93704.0,93703.0,0.37562973]
[1736479503974,0.00157542,93704.0,93703.0,0.37562973]
[1736479504821,0.00157542,93704.0,93703.0,0.26203573]
[1736479505039,0.00157542,93704.0,93703.0,1.12241081]
[1736479505716,0.00057542,93704.0,93703.0,1.12241081]
[1736479506145,0.00057542,93704.0,93703.0,1.42711057]
[1736479507329,0.00057542,93704.0,93703.0,1.42811057]
[1736479507532,0.00057542,93704.0,93703.0,1.42711057]
[1736479507738,0.00157542,93704.0,93703.0,1.54041033]
[1736479507947,0.00157542,93704.0,93703.0,1.54341033]
[1736479510004,8.52e-05,93714.0,93711.0,0.0774]
[1736479510215,8.52e-05,93714.0,93713.0,0.123]
[1736479510362,8.52e-05,93714.0,93713.0,0.22729976]
[1736479510569,8.52e-05,93714.0,93713.0,0.22897536]
[1736479511545,8.52e-05,93714.0,93713.0,0.23297536]
[1736479512216,8.52e-05,93714.0,93713.0,0.23397536]
[1736479512505,8.52e-05,93714.0,93713.0,0.33827512]
[1736479512756,8.52e-05,93714.0,93713.0,0.23397536]
[1736479513014,8.52e-05,93714.0,93713.0,0.13397536]
[1736479513220,8.52e-05,93714.0,93713.0,0.13504211]
[1736479513463,8.52e-05,93714.0,93713.0,1.32926781]
[1736479513719,8.52e-05,93714.0,93713.0,1.32820106]
[1736479514264,8.52e-05,93714.0,93713.0,1.30520106]
[1736479514527,8.52e-05,93714.0,93713.0,1.2009013]
[1736479516819,8.52e-05,93714.0,93713.0,1.1969013]
[1736479517245,8.52e-05,93714.0,93713.0,1.1959013]
[1736479517695,8.52e-05,93714.0,93713.0,1.1969013]
[1736479517904,8.52e-05,93714.0,93713.0,1.1959013]
[1736479518321,8.52e-05,93714.0,93713.0,1.1969013]
[1736479519318,8.52e-05,93714.0,93713.0,0.86147526]
[1736479523040,8.52e-05,93714.0,93713.0,0.86047526]
[1736479523414,8.52e-05,93714.0,93713.0,0.86147526]
[1736479525126,0.28368364,93714.0,93713.0,0.86147526]
[1736479525313,0.30178057,93714.0,93713.0,0.86147526]
[1736479525544,0.30178057,93714.0,93713.0,0.85979966]
[1736479525749,0.24408213,93714.0,93713.0,0.85979966]
[1736479525954,0.24408213,93714.0,93713.0,0.86147358]
[1736479526741,0.24408213,93714.0,93713.0,0.86047358]
[1736479527115,0.24908213,93714.0,93713.0,0.86047358]
[1736479527312,0.25108213,93714.0,93713.0,0.86047358]
[1736479528696,0.27008593,93714.0,93713.0,0.86047358]
[1736479529063,0.25108213,93714.0,93713.0,0.86047358]
[1736479529689,0.24908213,93714.0,93713.0,0.86047358]
[1736479529845,0.25108213,93714.0,93713.0,0.86047358]
[1736479530048,0.24608213,93714.0,93713.0,0.86047358]
[1736479530453,0.15738213,93714.0,93713.0,0.86047358]
[1736479530661,0.15238213,93714.0,93713.0,0.86047358]
[1736479530834,0.1520852,93714.0,93713.0,0.86047358]
[1736479531035,0.1570852,93714.0,93713.0,0.86047358]
[1736479531954,0.1570852,93714.0,93713.0,1.02432094]
[1736479532120,0.1570852,93714.0,93713.0,0.93827358]
[1736479532440,0.1570852,93714.0,93713.0,0.86047358]
[1736479533012,0.1520852,93714.0,93713.0,0.86047358]
[1736479533243,0.1500852,93714.0,93713.0,0.86047358]
[1736479533452,0.1500852,93714.0,93713.0,0.86247358]
[1736479533648,0.1500852,93714.0,93713.0,0.86347358]
[1736479533878,0.1500852,93714.0,93713.0,0.86147358]
[1736479534116,0.1500852,93714.0,93713.0,0.86247358]
[1736479534591,0.1500852,93714.0,93713.0,0.86347358]
[1736479536175,0.213396,93723.0,93713.0,0.86347358]
[1736479536409,0.00014698,93716.0,93713.0,0.86347358]
[1736479537034,0.00014698,93716.0,93713.0,0.86047358]
[1736479537496,0.00014698,93716.0,93714.0,0.85879966]
[1736479537931,0.00014698,93716.0,93715.0,0.00167285]
[1736479540289,0.00014698,93716.0,93715.0,0.00267285]
[1736479540527,0.00014698,93716.0,93715.0,0.00467285]
[1736479543330,0.00014698,93716.0,93715.0,0.86347251]
[1736479547376,0.36589083,93716.0,93715.0,0.86347251]
[1736479547781,0.36355698,93716.0,93715.0,0.86347251]
[1736479548611,0.00014698,93716.0,93715.0,0.86347251]
[1736479549266,0.00014698,93716.0,93715.0,0.86247251]
[1736479549698,0.00214698,93716.0,93715.0,0.86247251]
[1736479549901,0.00214698,93716.0,93715.0,0.86047251]
[1736479550103,0.00014698,93716.0,93715.0,0.86047251]
[1736479550242,0.00514698,93716.0,93715.0,0.86047251]
[1736479550452,0.00014698,93716.0,93715.0,0.86147251]
[1736479550677,0.00014698,93716.0,93715.0,0.86347251]
[1736479553041,0.00014698,93716.0,93715.0,0.86047251]
[1736479553276,0.15014698,93716.0,93715.0,0.86147251]
[1736479553532,0.20784248,93716.0,93715.0,0.86347251]
[1736479553770,0.15014698,93716.0,93715.0,0.86347251]
[1736479553959,0.15014698,93716.0,93715.0,0.86247251]
[1736479554194,0.15014698,93716.0,93715.0,0.86047251]
[1736479554371,0.15014698,93716.0,93715.0,0.86147251]
[1736479554580,0.15214698,93716.0,93715.0,0.86147251]
[1736479554816,0.15014698,93716.0,93715.0,0.86047251]
[1736479555246,0.15014698,93716.0,93715.0,0.31857251]
[1736479555478,0.23712208,93716.0,93715.0,0.31857251]
[1736479555734,0.34150796,93716.0,93715.0,0.31857251]
[1736479556172,0.34750796,93716.0,93715.0,0.31957251]
[1736479556535,0.34150796,93716.0,93715.0,0.31857251]
[1736479556761,0.35050796,93716.0,93715.0,0.31957251]
[1736479558208,0.35250796,93716.0,93715.0,0.31957251]
[1736479558862,0.35050796,93716.0,93715.0,0.31957251]
[1736479559074,0.35350796,93716.0,93715.0,0.31957251]
[1736479559540,0.26653286,93716.0,93715.0,0.31957251]
[1736479559740,0.16449486,93716.0,93715.0,0.31957251]
[1736479560541,0.16214698,93716.0,93715.0,0.31957251]
[1736479561096,0.16214698,93716.0,93715.0,0.31789966]
[1736479561529,0.16214698,93716.0,93715.0,0.31945536]
[1736479565525,0.16450173,93716.0,93715.0,0.31945536]
[1736479567430,0.2557363,93716.0,93715.0,0.31945536]
[1736479568760,0.16450173,93716.0,93715.0,0.31945536]
[1736479572224,0.16214698,93716.0,93715.0,0.31945536]
[1736479572442,0.01214698,93716.0,93715.0,0.44739966]
[1736479572851,0.01214698,93716.0,93715.0,0.44896113]
[1736479573280,0.01214698,93716.0,93715.0,0.99086113]
[1736479573639,0.00314698,93716.0,93715.0,0.98986113]
[1736479574053,0.01214698,93716.0,93715.0,0.99086113]
[1736479574286,0.00014698,93716.0,93715.0,0.98986113]
[1736479574700,0.00414698,93716.0,93715.0,0.98986113]
[1736479575118,0.00114698,93716.0,93715.0,0.98986113]
[1736479575616,5.702e-05,93716.0,93715.0,0.98986113]
[1736479576025,5.702e-05,93716.0,93715.0,1.08884724]
[1736479576819,5.702e-05,93716.0,93715.0,0.98986113]
[1736479605248,0.01078324,93724.0,93715.0,0.98986113]
[1736479605483,0.001,93716.0,93715.0,0.98986113]
[1736479606253,0.01078324,93724.0,93715.0,0.98986113]
[1736479606657,0.01478324,93724.0,93715.0,0.98986113]
[1736479606860,0.01278324,93724.0,93715.0,0.98986113]
[1736479608238,0.001,93716.0,93715.0,0.98986113]
[1736479608608,0.01278324,93724.0,93715.0,0.98986113]
[1736479609014,0.01678324,93724.0,93715.0,0.98986113]
[1736479609244,0.01678324,93724.0,93716.0,0.85879966]
[1736479609451,0.01278324,93724.0,93716.0,0.86034329]
[1736479609656,0.01078324,93724.0,93716.0,0.86034329]
[1736479610798,0.01278324,93724.0,93716.0,0.86034329]
[1736479611447,0.03601379,93724.0,93716.0,0.86034329]
[1736479611565,0.03201379,93724.0,93716.0,0.86034329]
[1736479611774,0.15,93718.0,93716.0,0.86034329]
[1736479611978,0.363408,93717.0,93716.0,0.85879966]
[1736479612208,0.363408,93717.0,93716.0,0.86034375]
[1736479614692,0.364408,93717.0,93716.0,0.86034375]
[1736479619384,0.001,93717.0,93716.0,0.86034375]
[1736479619800,0.214408,93717.0,93716.0,0.86034375]
[1736479623075,0.23952396,93717.0,93716.0,0.86034375]